[Event "*** SCC Grand Prix: Titled Tuesday Blitz"]
[Site "Chess.com"]
[Date "2020.08.11"]
[Round "2"]
[White "keshka01"]
[Black "IMHansNiemann"]
[Result "0-1"]
[WhiteElo "2588"]
[BlackElo "2926"]
[TimeControl "180+1"]
[EndTime "10:19:07 PDT"]
[Termination "IMHansNiemann won by resignation"]

1. d4 {[%clk 0:03:00.9]} 1... Nf6 {[%clk 0:02:20.6]} 2. c4 {[%clk 0:03:00.1]}
2... e6 {[%clk 0:02:16.5]} 3. Nf3 {[%clk 0:03:00.2]} 3... b6 {[%clk 0:02:15.7]}
4. g3 {[%clk 0:02:59.1]} 4... Bb7 {[%clk 0:02:15.7]} 5. Bg2 {[%clk 0:02:59.5]}
5... Be7 {[%clk 0:02:16]} 6. O-O {[%clk 0:02:58.5]} 6... O-O {[%clk 0:02:10.2]}
7. Re1 {[%clk 0:02:47.1]} 7... Na6 {[%clk 0:02:08.8]} 8. Nc3 {[%clk 0:02:39.5]}
8... Ne4 {[%clk 0:02:00.8]} 9. Qa4 {[%clk 0:02:23.8]} 9... Nxc3 {[%clk
0:01:51.5]} 10. bxc3 {[%clk 0:02:24.7]} 10... Qc8 {[%clk 0:01:49.1]} 11. e4
{[%clk 0:02:20.3]} 11... d6 {[%clk 0:01:48.6]} 12. h4 {[%clk 0:02:05.8]} 12...
e5 {[%clk 0:01:24.7]} 13. Ba3 {[%clk 0:01:39.7]} 13... Qe8 {[%clk 0:01:20.5]}
14. Qc2 {[%clk 0:01:28]} 14... Nb8 {[%clk 0:01:16.8]} 15. Rad1 {[%clk
0:01:25.7]} 15... Nc6 {[%clk 0:01:12.8]} 16. Kh2 {[%clk 0:01:25]} 16... Na5
{[%clk 0:01:11.8]} 17. c5 {[%clk 0:01:14]} 17... Nc4 {[%clk 0:01:05.7]} 18. Bc1
{[%clk 0:01:09.2]} 18... Bc6 {[%clk 0:00:50.8]} 19. Qe2 {[%clk 0:00:54.1]} 19...
Bb5 {[%clk 0:00:35.2]} 20. a4 {[%clk 0:00:46]} 20... Ba6 {[%clk 0:00:33.9]} 21.
cxd6 {[%clk 0:00:43.8]} 21... cxd6 {[%clk 0:00:29.6]} 22. Qa2 {[%clk 0:00:41.9]}
22... Qc6 {[%clk 0:00:24.8]} 23. Bf1 {[%clk 0:00:27.5]} 23... Rac8 {[%clk
0:00:23.9]} 24. Qc2 {[%clk 0:00:14.5]} 24... b5 {[%clk 0:00:22.1]} 25. axb5
{[%clk 0:00:14.3]} 25... Bxb5 {[%clk 0:00:23]} 26. dxe5 {[%clk 0:00:13.5]} 26...
Ba4 {[%clk 0:00:18]} 27. Qa2 {[%clk 0:00:13.6]} 27... Bxd1 {[%clk 0:00:17.2]}
28. Rxd1 {[%clk 0:00:14.5]} 28... dxe5 {[%clk 0:00:16.9]} 29. Bg2 {[%clk
0:00:10.1]} 29... a5 {[%clk 0:00:14.1]} 30. Rd5 {[%clk 0:00:09.5]} 30... a4
{[%clk 0:00:14.1]} 31. Nxe5 {[%clk 0:00:07.8]} 31... Nxe5 {[%clk 0:00:14.6]} 32.
Rxe5 {[%clk 0:00:08.7]} 32... Bf6 {[%clk 0:00:14.5]} 33. Rd5 {[%clk 0:00:08.5]}
33... Bxc3 {[%clk 0:00:14.6]} 34. Be3 {[%clk 0:00:08]} 34... Qc4 {[%clk
0:00:15]} 35. Qc2 {[%clk 0:00:06.9]} 35... Qb3 {[%clk 0:00:15]} 36. Qd3 {[%clk
0:00:06.4]} 36... a3 {[%clk 0:00:15.5]} 37. Rb5 {[%clk 0:00:07]} 37... Qc4
{[%clk 0:00:15.8]} 38. Qxc4 {[%clk 0:00:05.2]} 38... Rxc4 {[%clk 0:00:16.7]} 39.
Bc5 {[%clk 0:00:05.1]} 39... a2 {[%clk 0:00:15.3]} 40. Bxf8 {[%clk 0:00:05.3]}
40... a1=Q {[%clk 0:00:15.1]} 41. Rb8 {[%clk 0:00:05.5]} 41... h6 {[%clk
0:00:08.1]} 42. e5 {[%clk 0:00:05.7]} 42... Kh7 {[%clk 0:00:07.8]} 43. Be4+
{[%clk 0:00:04.3]} 43... Rxe4 {[%clk 0:00:07.6]} 0-1

[Event "*** SCC Grand Prix: Titled Tuesday Blitz"]
[Site "Chess.com"]
[Date "2020.08.11"]
[Round "2"]
[White "SantoBlue"]
[Black "Warre"]
[Result "1-0"]
[WhiteElo "2875"]
[BlackElo "2574"]
[TimeControl "180+1"]
[EndTime "10:19:07 PDT"]
[Termination "SantoBlue won by resignation"]

1. e4 {[%clk 0:02:59.2]} 1... e5 {[%clk 0:02:57.1]} 2. Nf3 {[%clk 0:02:58.1]}
2... Nc6 {[%clk 0:02:57.4]} 3. Bc4 {[%clk 0:02:57.7]} 3... Nf6 {[%clk
0:02:57.2]} 4. d4 {[%clk 0:02:52.2]} 4... exd4 {[%clk 0:02:57]} 5. e5 {[%clk
0:02:51.5]} 5... Ne4 {[%clk 0:02:55.2]} 6. Qe2 {[%clk 0:02:46.1]} 6... Nc5
{[%clk 0:02:52.1]} 7. O-O {[%clk 0:02:45.9]} 7... Ne6 {[%clk 0:02:45]} 8. Rd1
{[%clk 0:02:45.3]} 8... d5 {[%clk 0:02:20.1]} 9. exd6 {[%clk 0:02:38.8]} 9...
Bxd6 {[%clk 0:02:19.5]} 10. Bg5 {[%clk 0:02:29.5]} 10... Be7 {[%clk 0:02:16.2]}
11. Bxe7 {[%clk 0:02:29.4]} 11... Qxe7 {[%clk 0:02:11.1]} 12. Bb5 {[%clk
0:02:27.5]} 12... Bd7 {[%clk 0:02:04.7]} 13. Na3 {[%clk 0:02:24.5]} 13... O-O-O
{[%clk 0:01:56.3]} 14. Bxc6 {[%clk 0:02:13.1]} 14... Bxc6 {[%clk 0:01:50.8]} 15.
Nxd4 {[%clk 0:02:13.7]} 15... Bd7 {[%clk 0:01:38.2]} 16. Nab5 {[%clk 0:01:57]}
16... Bxb5 {[%clk 0:01:26.7]} 17. Nxb5 {[%clk 0:01:56]} 17... Kb8 {[%clk
0:01:26.8]} 18. Nd4 {[%clk 0:01:52.9]} 18... Rd6 {[%clk 0:01:18.4]} 19. Nf5
{[%clk 0:01:41]} 19... Rxd1+ {[%clk 0:01:18.1]} 20. Rxd1 {[%clk 0:01:41.9]}
20... Qf6 {[%clk 0:01:17.7]} 21. Ne3 {[%clk 0:01:31.7]} 21... Rd8 {[%clk
0:01:15.2]} 22. c3 {[%clk 0:01:29.7]} 22... Rxd1+ {[%clk 0:01:03.6]} 23. Qxd1
{[%clk 0:01:29.9]} 23... Kc8 {[%clk 0:00:58.9]} 24. h3 {[%clk 0:01:26.7]} 24...
Qd8 {[%clk 0:00:58.1]} 25. Qa4 {[%clk 0:01:26.2]} 25... Kb8 {[%clk 0:00:58.2]}
26. Qe4 {[%clk 0:01:22.4]} 26... h6 {[%clk 0:00:54.6]} 27. Nd5 {[%clk
0:01:22.2]} 27... c6 {[%clk 0:00:52.5]} 28. Qe5+ {[%clk 0:01:19.8]} 28... Kc8
{[%clk 0:00:47.1]} 29. Ne3 {[%clk 0:01:19.8]} 29... Qc7 {[%clk 0:00:42.7]} 30.
Qe4 {[%clk 0:01:17.4]} 30... Qd7 {[%clk 0:00:42.1]} 31. Nc4 {[%clk 0:01:10.7]}
31... Qd1+ {[%clk 0:00:39.4]} 32. Kh2 {[%clk 0:01:10.4]} 32... Qd7 {[%clk
0:00:37.1]} 33. Qe5 {[%clk 0:01:09.8]} 33... b6 {[%clk 0:00:28.6]} 34. Nd6+
{[%clk 0:01:08.9]} 34... Kd8 {[%clk 0:00:26.3]} 35. Nf5 {[%clk 0:00:54]} 35...
Qc7 {[%clk 0:00:25.1]} 36. Qxc7+ {[%clk 0:00:54]} 36... Kxc7 {[%clk 0:00:24.6]}
37. g4 {[%clk 0:00:51.6]} 37... Kd7 {[%clk 0:00:22.7]} 38. Kg3 {[%clk
0:00:51.5]} 38... c5 {[%clk 0:00:22.3]} 39. f4 {[%clk 0:00:51.7]} 39... Kc6
{[%clk 0:00:22.6]} 40. h4 {[%clk 0:00:50.6]} 40... b5 {[%clk 0:00:21.9]} 41. h5
{[%clk 0:00:50.3]} 41... a5 {[%clk 0:00:21.1]} 42. Kf3 {[%clk 0:00:49.8]} 42...
Kd5 {[%clk 0:00:21.2]} 43. g5 {[%clk 0:00:41.9]} 43... hxg5 {[%clk 0:00:20.5]}
44. Nxg7 {[%clk 0:00:42.1]} 44... Nxg7 {[%clk 0:00:15.2]} 45. h6 {[%clk
0:00:42.2]} 45... g4+ {[%clk 0:00:08.9]} 46. Kf2 {[%clk 0:00:27.8]} 46... g3+
{[%clk 0:00:07.9]} 47. Kg1 {[%clk 0:00:27.5]} 1-0

[Event "*** SCC Grand Prix: Titled Tuesday Blitz"]
[Site "Chess.com"]
[Date "2020.08.11"]
[Round "2"]
[White "sergeikim"]
[Black "Vuk2000"]
[Result "0-1"]
[WhiteElo "2461"]
[BlackElo "2699"]
[TimeControl "180+1"]
[EndTime "10:19:09 PDT"]
[Termination "Vuk2000 won on time"]

1. d4 {[%clk 0:03:00.9]} 1... e6 {[%clk 0:03:00.1]} 2. c3 {[%clk 0:03:00.7]}
2... Nf6 {[%clk 0:03:00.3]} 3. c4 {[%clk 0:03:01.6]} 3... Bb4+ {[%clk 0:02:58]}
4. Nc3 {[%clk 0:03:02.5]} 4... O-O {[%clk 0:02:57.4]} 5. Qc2 {[%clk 0:03:00.3]}
5... c5 {[%clk 0:02:56.2]} 6. dxc5 {[%clk 0:02:59.5]} 6... Na6 {[%clk
0:02:54.7]} 7. Nf3 {[%clk 0:02:57.2]} 7... Nxc5 {[%clk 0:02:54]} 8. Bd2 {[%clk
0:02:56.9]} 8... b6 {[%clk 0:02:52.8]} 9. e3 {[%clk 0:02:56.9]} 9... Bb7 {[%clk
0:02:52.4]} 10. Be2 {[%clk 0:02:56.9]} 10... Nfe4 {[%clk 0:02:50.7]} 11. O-O
{[%clk 0:02:51.4]} 11... Nxd2 {[%clk 0:02:50.1]} 12. Nxd2 {[%clk 0:02:51]} 12...
Qf6 {[%clk 0:02:43.5]} 13. Bf3 {[%clk 0:02:48.4]} 13... Bxf3 {[%clk 0:02:42.1]}
14. Nxf3 {[%clk 0:02:47.5]} 14... Bxc3 {[%clk 0:02:42.4]} 15. bxc3 {[%clk
0:02:47.7]} 15... Rac8 {[%clk 0:02:40.4]} 16. Rfd1 {[%clk 0:02:46.2]} 16... Rc7
{[%clk 0:02:32.9]} 17. Rd4 {[%clk 0:02:40.3]} 17... Rfc8 {[%clk 0:02:27.8]} 18.
Rad1 {[%clk 0:02:38.7]} 18... Qe7 {[%clk 0:02:13.6]} 19. Qd2 {[%clk 0:02:34.3]}
19... h6 {[%clk 0:02:03.5]} 20. h3 {[%clk 0:02:32.5]} 20... d5 {[%clk
0:01:56.4]} 21. cxd5 {[%clk 0:02:28.2]} 21... exd5 {[%clk 0:01:57.3]} 22. Qc2
{[%clk 0:02:04.1]} 22... Ne4 {[%clk 0:01:56.8]} 23. R1d3 {[%clk 0:01:24.9]}
23... Rxc3 {[%clk 0:01:32.1]} 24. Rxc3 {[%clk 0:01:24.4]} 24... Nxc3 {[%clk
0:01:20]} 25. Kh2 {[%clk 0:01:10.9]} 25... Rc5 {[%clk 0:01:12.3]} 26. a3 {[%clk
0:00:47.7]} 26... Nb5 {[%clk 0:01:02.2]} 27. Qf5 {[%clk 0:00:43.9]} 27... Nxd4
{[%clk 0:00:56.3]} 28. exd4 {[%clk 0:00:44.5]} 28... Qd6+ {[%clk 0:00:50.4]} 29.
Ne5 {[%clk 0:00:42.3]} 29... Rc7 {[%clk 0:00:50.2]} 30. f4 {[%clk 0:00:40.3]}
30... g6 {[%clk 0:00:45.9]} 31. Qd3 {[%clk 0:00:37.2]} 31... Kg7 {[%clk
0:00:45.5]} 32. a4 {[%clk 0:00:32.9]} 32... Qf6 {[%clk 0:00:44.1]} 33. Qf3
{[%clk 0:00:26.6]} 33... Qf5 {[%clk 0:00:40.4]} 34. Qg3 {[%clk 0:00:11.2]} 34...
Rc2 {[%clk 0:00:34.2]} 35. Nf3 {[%clk 0:00:08.8]} 35... Rc3 {[%clk 0:00:21.3]}
36. Qh4 {[%clk 0:00:07.5]} 36... Qf6 {[%clk 0:00:15.2]} 37. Qg4 {[%clk
0:00:06.5]} 37... Rc4 {[%clk 0:00:15.1]} 38. Qg3 {[%clk 0:00:01.5]} 38... Rxa4
{[%clk 0:00:14.5]} 39. Qg4 {[%clk 0:00:01.5]} 39... Rxd4 {[%clk 0:00:14.1]} 0-1

[Event "*** SCC Grand Prix: Titled Tuesday Blitz"]
[Site "Chess.com"]
[Date "2020.08.11"]
[Round "2"]
[White "dopolian"]
[Black "GMHess"]
[Result "0-1"]
[WhiteElo "2533"]
[BlackElo "2819"]
[TimeControl "180+1"]
[EndTime "10:19:15 PDT"]
[Termination "GMHess won by resignation"]

1. e4 {[%clk 0:03:00.9]} 1... d6 {[%clk 0:02:57]} 2. d4 {[%clk 0:03:00.3]} 2...
Nf6 {[%clk 0:02:57.9]} 3. Nc3 {[%clk 0:03:00.1]} 3... c6 {[%clk 0:02:57.9]} 4.
f4 {[%clk 0:02:59.2]} 4... Qa5 {[%clk 0:02:57.1]} 5. Bd3 {[%clk 0:02:57.1]} 5...
d5 {[%clk 0:02:54.3]} 6. e5 {[%clk 0:02:52.1]} 6... Ne4 {[%clk 0:02:54.2]} 7.
Ne2 {[%clk 0:02:45.5]} 7... f5 {[%clk 0:02:47.9]} 8. O-O {[%clk 0:02:42.2]} 8...
Be6 {[%clk 0:02:37.6]} 9. Be3 {[%clk 0:02:37.7]} 9... Nd7 {[%clk 0:02:34.5]} 10.
Nb1 {[%clk 0:02:17.4]} 10... Qc7 {[%clk 0:02:09.2]} 11. Nd2 {[%clk 0:02:12.8]}
11... Nb6 {[%clk 0:02:03.3]} 12. c3 {[%clk 0:02:06.6]} 12... Bf7 {[%clk
0:02:02.4]} 13. Nf3 {[%clk 0:02:02.6]} 13... e6 {[%clk 0:01:53.6]} 14. Qe1
{[%clk 0:01:54.9]} 14... Be7 {[%clk 0:01:46.4]} 15. Ng5 {[%clk 0:01:46.4]} 15...
Bg8 {[%clk 0:01:35.2]} 16. b4 {[%clk 0:01:18]} 16... a5 {[%clk 0:01:30.7]} 17.
bxa5 {[%clk 0:01:01.5]} 17... Rxa5 {[%clk 0:01:21.2]} 18. c4 {[%clk 0:01:01.8]}
18... Nxc4 {[%clk 0:01:20]} 19. Bxc4 {[%clk 0:01:01.8]} 19... Nxg5 {[%clk
0:00:59.7]} 20. Bxd5 {[%clk 0:00:55.8]} 20... Nh3+ {[%clk 0:00:56.7]} 21. gxh3
{[%clk 0:00:56.7]} 21... exd5 {[%clk 0:00:55]} 22. Qg3 {[%clk 0:00:50.4]} 22...
Be6 {[%clk 0:00:52.1]} 23. Kh1 {[%clk 0:00:48.8]} 23... O-O {[%clk 0:00:32]} 24.
Rg1 {[%clk 0:00:48.9]} 24... Rf7 {[%clk 0:00:25.9]} 25. a4 {[%clk 0:00:39.7]}
25... c5 {[%clk 0:00:25.7]} 26. dxc5 {[%clk 0:00:39.5]} 26... d4 {[%clk
0:00:25.6]} 27. Nxd4 {[%clk 0:00:32.3]} 27... Bd5+ {[%clk 0:00:25.5]} 28. Nf3
{[%clk 0:00:32.7]} 28... Qc6 {[%clk 0:00:21.3]} 29. Rgf1 {[%clk 0:00:32.8]}
29... Bxc5 {[%clk 0:00:19.1]} 30. Rac1 {[%clk 0:00:29.5]} 30... b6 {[%clk
0:00:13]} 31. Bxc5 {[%clk 0:00:26.7]} 31... bxc5 {[%clk 0:00:13.9]} 32. Kg1
{[%clk 0:00:23.5]} 32... Qxa4 {[%clk 0:00:12.5]} 33. Ng5 {[%clk 0:00:19.3]}
33... Rfa7 {[%clk 0:00:07.8]} 34. Rfd1 {[%clk 0:00:18.8]} 34... c4 {[%clk
0:00:05.7]} 35. Qf2 {[%clk 0:00:10.2]} 35... h6 {[%clk 0:00:05.5]} 36. Nf3
{[%clk 0:00:08.6]} 36... c3 {[%clk 0:00:06]} 37. Nd4 {[%clk 0:00:08.3]} 37...
Be4 {[%clk 0:00:04.3]} 38. Ne2 {[%clk 0:00:05.4]} 38... c2 {[%clk 0:00:04.2]}
39. Rd8+ {[%clk 0:00:05]} 39... Kh7 {[%clk 0:00:03.9]} 40. Nc3 {[%clk
0:00:05.1]} 40... Qa3 {[%clk 0:00:04.3]} 41. Nxe4 {[%clk 0:00:04.8]} 41... Qxc1+
{[%clk 0:00:04.3]} 42. Kg2 {[%clk 0:00:04.3]} 42... fxe4 {[%clk 0:00:04.8]} 43.
Kg3 {[%clk 0:00:01.3]} 43... Qd1 {[%clk 0:00:03.6]} 44. Kh4 {[%clk 0:00:01.4]}
44... Qxd8+ {[%clk 0:00:03.4]} 0-1

[Event "*** SCC Grand Prix: Titled Tuesday Blitz"]
[Site "Chess.com"]
[Date "2020.08.11"]
[Round "2"]
[White "chessfrendz"]
[Black "Siemba"]
[Result "0-1"]
[WhiteElo "2261"]
[BlackElo "2473"]
[TimeControl "180+1"]
[EndTime "10:19:15 PDT"]
[Termination "Siemba won on time"]

1. d4 {[%clk 0:03:00.9]} 1... d5 {[%clk 0:02:59.2]} 2. Nf3 {[%clk 0:02:59.6]}
2... c5 {[%clk 0:02:59.6]} 3. c3 {[%clk 0:02:57.8]} 3... Nf6 {[%clk 0:02:59]} 4.
Bf4 {[%clk 0:02:56.7]} 4... e6 {[%clk 0:02:58]} 5. e3 {[%clk 0:02:53.3]} 5...
Bd6 {[%clk 0:02:58.3]} 6. Bg3 {[%clk 0:02:52.6]} 6... O-O {[%clk 0:02:58.3]} 7.
Nbd2 {[%clk 0:02:51.2]} 7... Qc7 {[%clk 0:02:57.6]} 8. Ne5 {[%clk 0:02:47.9]}
8... Nbd7 {[%clk 0:02:43.5]} 9. f4 {[%clk 0:02:47.1]} 9... cxd4 {[%clk 0:02:42]}
10. exd4 {[%clk 0:02:46.1]} 10... Ne4 {[%clk 0:02:41.4]} 11. Nxe4 {[%clk
0:02:44.9]} 11... dxe4 {[%clk 0:02:39.4]} 12. Qd2 {[%clk 0:02:28.4]} 12... f6
{[%clk 0:02:26.8]} 13. Nc4 {[%clk 0:02:26.9]} 13... f5 {[%clk 0:02:24]} 14. Be2
{[%clk 0:02:20.5]} 14... Nf6 {[%clk 0:02:15.5]} 15. Nxd6 {[%clk 0:02:16]} 15...
Qxd6 {[%clk 0:02:16.4]} 16. O-O {[%clk 0:02:03.1]} 16... Bd7 {[%clk 0:01:59]}
17. Bf2 {[%clk 0:02:02.1]} 17... Rfc8 {[%clk 0:01:48.7]} 18. c4 {[%clk
0:01:56.8]} 18... Be8 {[%clk 0:01:45.3]} 19. Rfe1 {[%clk 0:01:44.4]} 19... Bh5
{[%clk 0:01:41.9]} 20. Bxh5 {[%clk 0:01:39.1]} 20... Nxh5 {[%clk 0:01:42.8]} 21.
Be3 {[%clk 0:01:37.5]} 21... Nf6 {[%clk 0:00:59.6]} 22. Rac1 {[%clk 0:01:29.2]}
22... a6 {[%clk 0:00:34.5]} 23. Red1 {[%clk 0:01:15.8]} 23... b5 {[%clk
0:00:29.5]} 24. b3 {[%clk 0:01:01]} 24... Rab8 {[%clk 0:00:23.1]} 25. h3 {[%clk
0:00:51.4]} 25... bxc4 {[%clk 0:00:20.3]} 26. bxc4 {[%clk 0:00:50.6]} 26... Qb4
{[%clk 0:00:20.1]} 27. Qe2 {[%clk 0:00:48]} 27... Qa4 {[%clk 0:00:18]} 28. g4
{[%clk 0:00:36.8]} 28... Rb4 {[%clk 0:00:14.6]} 29. g5 {[%clk 0:00:36.2]} 29...
Ne8 {[%clk 0:00:12.1]} 30. c5 {[%clk 0:00:30.2]} 30... Nc7 {[%clk 0:00:12.1]}
31. Qh5 {[%clk 0:00:16.7]} 31... Nd5 {[%clk 0:00:09.9]} 32. g6 {[%clk 0:00:16]}
32... h6 {[%clk 0:00:06.3]} 33. Qe2 {[%clk 0:00:13.6]} 33... Rcb8 {[%clk
0:00:05.5]} 34. c6 {[%clk 0:00:09.9]} 34... Rb2 {[%clk 0:00:05.1]} 35. c7 {[%clk
0:00:05.7]} 35... Nxc7 {[%clk 0:00:03]} 36. Qc4 {[%clk 0:00:02.7]} 36... Qxc4
{[%clk 0:00:02.8]} 37. Rxc4 {[%clk 0:00:02.1]} 37... Nd5 {[%clk 0:00:03.7]} 0-1

[Event "*** SCC Grand Prix: Titled Tuesday Blitz"]
[Site "Chess.com"]
[Date "2020.08.11"]
[Round "2"]
[White "Bulldog167"]
[Black "ThePatrick27"]
[Result "1-0"]
[WhiteElo "2709"]
[BlackElo "2472"]
[TimeControl "180+1"]
[EndTime "10:19:19 PDT"]
[Termination "Bulldog167 won by resignation"]

1. e4 {[%clk 0:03:00.9]} 1... e5 {[%clk 0:02:57]} 2. f4 {[%clk 0:03:00.9]} 2...
exf4 {[%clk 0:02:51.6]} 3. Nf3 {[%clk 0:03:01.2]} 3... g5 {[%clk 0:02:50.2]} 4.
Bc4 {[%clk 0:03:00.5]} 4... Bg7 {[%clk 0:02:49.7]} 5. Nc3 {[%clk 0:02:38.6]}
5... h6 {[%clk 0:02:47.3]} 6. g3 {[%clk 0:02:36.5]} 6... fxg3 {[%clk 0:02:31.5]}
7. hxg3 {[%clk 0:02:37.4]} 7... Ne7 {[%clk 0:02:25.1]} 8. O-O {[%clk 0:02:33.4]}
8... O-O {[%clk 0:02:14]} 9. d4 {[%clk 0:02:28.3]} 9... c6 {[%clk 0:02:03.9]}
10. Bxg5 {[%clk 0:01:55.7]} 10... d5 {[%clk 0:01:12.9]} 11. Bxe7 {[%clk
0:01:23.7]} 11... Qxe7 {[%clk 0:01:10.9]} 12. exd5 {[%clk 0:01:24.3]} 12... Qd6
{[%clk 0:00:54.2]} 13. Kg2 {[%clk 0:00:51.6]} 13... cxd5 {[%clk 0:00:47.4]} 14.
Bxd5 {[%clk 0:00:51.1]} 14... Nc6 {[%clk 0:00:44.3]} 15. Qd2 {[%clk 0:00:42]}
15... Bg4 {[%clk 0:00:38.9]} 16. Bxc6 {[%clk 0:00:35.3]} 16... Qxc6 {[%clk
0:00:31.8]} 17. d5 {[%clk 0:00:33.6]} 17... Qb6 {[%clk 0:00:27.7]} 18. Qf4
{[%clk 0:00:23.3]} 18... Qxb2 {[%clk 0:00:22.9]} 19. Qxg4 {[%clk 0:00:18.4]}
19... Qxc2+ {[%clk 0:00:21.2]} 20. Rf2 {[%clk 0:00:18.5]} 20... Qxc3 {[%clk
0:00:21.5]} 21. Raf1 {[%clk 0:00:18.2]} 21... Kh8 {[%clk 0:00:20.6]} 22. Nh4
{[%clk 0:00:17.8]} 22... Qd4 {[%clk 0:00:16.6]} 23. Qxd4 {[%clk 0:00:14.6]}
23... Bxd4 {[%clk 0:00:17.5]} 24. Rxf7 {[%clk 0:00:15.1]} 24... Rxf7 {[%clk
0:00:18.4]} 25. Rxf7 {[%clk 0:00:15.5]} 25... b5 {[%clk 0:00:19.3]} 26. Rb7
{[%clk 0:00:12.1]} 26... Bb6 {[%clk 0:00:18.5]} 27. Kf3 {[%clk 0:00:11.1]} 27...
Rd8 {[%clk 0:00:17.7]} 28. Ke4 {[%clk 0:00:10.9]} 28... b4 {[%clk 0:00:17.8]}
29. Ke5 {[%clk 0:00:07.8]} 29... Kg8 {[%clk 0:00:17.4]} 30. Nf5 {[%clk
0:00:07.9]} 30... h5 {[%clk 0:00:16.9]} 31. d6 {[%clk 0:00:07.8]} 31... Kf8
{[%clk 0:00:12.6]} 32. Ke6 {[%clk 0:00:08]} 32... Re8+ {[%clk 0:00:12]} 33. Kf6
{[%clk 0:00:06.6]} 33... Rd8 {[%clk 0:00:11.3]} 34. Rf7+ {[%clk 0:00:05.8]}
34... Kg8 {[%clk 0:00:11.5]} 35. Rg7+ {[%clk 0:00:06.4]} 35... Kh8 {[%clk
0:00:11.4]} 36. Re7 {[%clk 0:00:05.6]} 36... Kg8 {[%clk 0:00:10.8]} 37. Ke6
{[%clk 0:00:04.4]} 37... Kh8 {[%clk 0:00:07.3]} 38. d7 {[%clk 0:00:04.3]} 38...
Kg8 {[%clk 0:00:06.6]} 39. Re8+ {[%clk 0:00:04.5]} 39... Kh7 {[%clk 0:00:07.1]}
40. Nd6 {[%clk 0:00:04.2]} 40... Kg6 {[%clk 0:00:06.4]} 41. Nf7 {[%clk
0:00:04.6]} 41... Rxd7 {[%clk 0:00:06.5]} 42. Ne5+ {[%clk 0:00:04.7]} 42... Kg5
{[%clk 0:00:05.9]} 43. Nxd7 {[%clk 0:00:05.6]} 43... Kg4 {[%clk 0:00:06.5]} 44.
Nxb6 {[%clk 0:00:05.9]} 44... axb6 {[%clk 0:00:07.4]} 45. Rb8 {[%clk 0:00:06.4]}
45... Kxg3 {[%clk 0:00:07.5]} 46. Rxb6 {[%clk 0:00:07]} 46... h4 {[%clk
0:00:07.9]} 47. Rxb4 {[%clk 0:00:07.5]} 47... h3 {[%clk 0:00:08.5]} 48. Rb1
{[%clk 0:00:07.8]} 48... Kg2 {[%clk 0:00:09.4]} 49. a4 {[%clk 0:00:08.7]} 1-0

[Event "*** SCC Grand Prix: Titled Tuesday Blitz"]
[Site "Chess.com"]
[Date "2020.08.11"]
[Round "2"]
[White "ChronicUnhappiness"]
[Black "teacher4chess"]
[Result "1-0"]
[WhiteElo "2367"]
[BlackElo "2042"]
[TimeControl "180+1"]
[EndTime "10:19:21 PDT"]
[Termination "ChronicUnhappiness won by resignation"]

1. d4 {[%clk 0:03:00.9]} 1... d5 {[%clk 0:02:58.5]} 2. c4 {[%clk 0:03:00.6]}
2... c6 {[%clk 0:02:58.8]} 3. Nf3 {[%clk 0:03:00]} 3... Nf6 {[%clk 0:02:59]} 4.
e3 {[%clk 0:03:00.2]} 4... Bg4 {[%clk 0:02:58.6]} 5. Nc3 {[%clk 0:02:59]} 5...
e6 {[%clk 0:02:58.7]} 6. Qb3 {[%clk 0:02:55.1]} 6... Qb6 {[%clk 0:02:58.4]} 7.
Ne5 {[%clk 0:02:47.4]} 7... Bf5 {[%clk 0:02:52.8]} 8. Bd2 {[%clk 0:02:46.8]}
8... Nbd7 {[%clk 0:02:46.9]} 9. Nxd7 {[%clk 0:02:33.4]} 9... Kxd7 {[%clk
0:02:43.2]} 10. Be2 {[%clk 0:02:23]} 10... Qxb3 {[%clk 0:02:37.6]} 11. axb3
{[%clk 0:02:22.4]} 11... Bb4 {[%clk 0:02:37.6]} 12. f3 {[%clk 0:02:21.6]} 12...
h5 {[%clk 0:02:30.1]} 13. Kf2 {[%clk 0:02:06.7]} 13... Bc2 {[%clk 0:02:24.1]}
14. Bd1 {[%clk 0:02:04.6]} 14... Bxd1 {[%clk 0:02:22.2]} 15. Raxd1 {[%clk
0:01:57.3]} 15... Bxc3 {[%clk 0:02:20]} 16. bxc3 {[%clk 0:01:54.8]} 16... a5
{[%clk 0:01:49.6]} 17. Ra1 {[%clk 0:01:49.9]} 17... Ra7 {[%clk 0:01:46.9]} 18.
Ra2 {[%clk 0:01:48.3]} 18... Rha8 {[%clk 0:01:46.8]} 19. Rha1 {[%clk 0:01:48.2]}
19... b5 {[%clk 0:01:39.8]} 20. cxb5 {[%clk 0:01:39.9]} 20... cxb5 {[%clk
0:01:39.8]} 21. Ke2 {[%clk 0:01:40.2]} 21... a4 {[%clk 0:01:34.6]} 22. Kd3
{[%clk 0:01:32.3]} 22... Kc6 {[%clk 0:01:31.2]} 23. c4 {[%clk 0:01:20.3]} 23...
dxc4+ {[%clk 0:01:28.5]} 24. bxc4 {[%clk 0:01:19.4]} 24... bxc4+ {[%clk
0:01:27.3]} 25. Kxc4 {[%clk 0:01:19.5]} 25... Nd5 {[%clk 0:01:26.3]} 26. e4
{[%clk 0:01:14.8]} 26... Nb6+ {[%clk 0:01:25.7]} 27. Kb4 {[%clk 0:01:11.1]}
27... Kb7 {[%clk 0:01:18.6]} 28. Rc1 {[%clk 0:01:00.8]} 28... f5 {[%clk
0:01:17.9]} 29. Ka3 {[%clk 0:00:55.4]} 29... Rc8 {[%clk 0:01:14.3]} 30. Rb2
{[%clk 0:00:46]} 30... Rxc1 {[%clk 0:01:13.3]} 31. Bxc1 {[%clk 0:00:46.9]} 31...
Kc6 {[%clk 0:01:08.8]} 32. Rb4 {[%clk 0:00:44.3]} 32... Ra5 {[%clk 0:01:06.9]}
33. Be3 {[%clk 0:00:40.4]} 33... Rb5 {[%clk 0:01:06.9]} 34. d5+ {[%clk
0:00:18.2]} 34... exd5 {[%clk 0:01:05.7]} 35. Bxb6 {[%clk 0:00:14.6]} 35... Rxb4
{[%clk 0:00:56.6]} 36. Kxb4 {[%clk 0:00:11.4]} 36... Kxb6 {[%clk 0:00:57]} 37.
exd5 {[%clk 0:00:11.5]} 37... a3 {[%clk 0:00:57.2]} 38. Kxa3 {[%clk 0:00:11.2]}
38... Kc5 {[%clk 0:00:57.5]} 39. Kb3 {[%clk 0:00:10.9]} 39... Kxd5 {[%clk
0:00:58.1]} 40. Kc3 {[%clk 0:00:11.5]} 40... f4 {[%clk 0:00:57.3]} 41. h4 {[%clk
0:00:08.7]} 41... g6 {[%clk 0:00:56.6]} 42. Kd3 {[%clk 0:00:08.6]} 42... Ke5
{[%clk 0:00:56.7]} 43. Kc4 {[%clk 0:00:08.3]} 43... Kf5 {[%clk 0:00:54.4]} 44.
Kd5 {[%clk 0:00:07.9]} 44... g5 {[%clk 0:00:54.7]} 45. hxg5 {[%clk 0:00:08]}
45... Kxg5 {[%clk 0:00:54.9]} 46. Ke5 {[%clk 0:00:08.3]} 46... h4 {[%clk
0:00:53.1]} 47. Ke4 {[%clk 0:00:08.5]} 47... h3 {[%clk 0:00:50.7]} 48. gxh3
{[%clk 0:00:08.4]} 48... Kh4 {[%clk 0:00:49.6]} 49. Kxf4 {[%clk 0:00:09.3]}
49... Kxh3 {[%clk 0:00:50.2]} 50. Kg5 {[%clk 0:00:08.6]} 50... Kg3 {[%clk
0:00:50.2]} 51. f4 {[%clk 0:00:09.5]} 51... Kf3 {[%clk 0:00:50.4]} 52. f5 {[%clk
0:00:10.4]} 52... Ke4 {[%clk 0:00:51.2]} 53. f6 {[%clk 0:00:11.3]} 53... Kf3
{[%clk 0:00:51.4]} 54. f7 {[%clk 0:00:11.4]} 54... Kg3 {[%clk 0:00:52]} 55. f8=Q
{[%clk 0:00:12.3]} 55... Kh2 {[%clk 0:00:52.9]} 56. Qf3 {[%clk 0:00:11.2]} 56...
Kg1 {[%clk 0:00:52]} 57. Qe2 {[%clk 0:00:11]} 57... Kh1 {[%clk 0:00:52.1]} 58.
Kg4 {[%clk 0:00:10.3]} 1-0